[Event "*** Titled Tuesday Blitz"]
[Site "Chess.com"]
[Date "2021.03.30"]
[Round "5"]
[White "Cptn2"]
[Black "northridgehawk"]
[Result "1-0"]
[WhiteElo "2504"]
[BlackElo "2312"]
[TimeControl "180+1"]
[EndTime "10:56:07 PDT"]
[Termination "Cptn2 won by resignation"]

1. e4 {[%clk 0:03:00.9]} 1... e5 {[%clk 0:02:58.9]} 2. Nf3 {[%clk 0:02:58]} 2...
Nc6 {[%clk 0:02:58.5]} 3. Bb5 {[%clk 0:02:56.1]} 3... a6 {[%clk 0:02:58.8]} 4.
Ba4 {[%clk 0:02:45.7]} 4... Nf6 {[%clk 0:02:58.2]} 5. O-O {[%clk 0:02:46.2]}
5... b5 {[%clk 0:02:58.7]} 6. Bb3 {[%clk 0:02:46.1]} 6... Bc5 {[%clk 0:02:59.6]}
7. c3 {[%clk 0:02:44.2]} 7... d6 {[%clk 0:03:00.5]} 8. d4 {[%clk 0:02:44.6]}
8... Bb6 {[%clk 0:03:01]} 9. Bd5 {[%clk 0:02:43.6]} 9... Bd7 {[%clk 0:02:55.9]}
10. Bg5 {[%clk 0:02:33.4]} 10... h6 {[%clk 0:02:51.1]} 11. Bh4 {[%clk
0:02:28.6]} 11... g5 {[%clk 0:02:50.8]} 12. Nxg5 {[%clk 0:02:27.5]} 12... hxg5
{[%clk 0:02:50.5]} 13. Bxg5 {[%clk 0:02:28.4]} 13... Rg8 {[%clk 0:02:50.9]} 14.
Bh4 {[%clk 0:02:25.4]} 14... exd4 {[%clk 0:02:51.1]} 15. cxd4 {[%clk 0:02:07.9]}
15... Rb8 {[%clk 0:02:25.2]} 16. e5 {[%clk 0:01:59.4]} 16... dxe5 {[%clk
0:02:25.2]} 17. dxe5 {[%clk 0:02:00.3]} 17... Nxe5 {[%clk 0:02:21.3]} 18. Re1
{[%clk 0:01:59.4]} 18... Qe7 {[%clk 0:02:20.7]} 19. Nc3 {[%clk 0:01:51.7]} 19...
Kf8 {[%clk 0:02:13.3]} 20. Ne4 {[%clk 0:01:48.5]} 20... Nxd5 {[%clk 0:02:00]}
21. Bxe7+ {[%clk 0:01:47.7]} 21... Nxe7 {[%clk 0:02:00.9]} 22. Nf6 {[%clk
0:01:47.9]} 22... Bg4 {[%clk 0:01:31.7]} 23. Qc2 {[%clk 0:00:52.3]} 23... Nf3+
{[%clk 0:01:22]} 24. gxf3 {[%clk 0:00:51.1]} 24... Bf5+ {[%clk 0:01:22.1]} 25.
Nxg8 {[%clk 0:00:50.6]} 25... Bxc2 {[%clk 0:01:22.3]} 26. Nxe7 {[%clk
0:00:50.5]} 26... Bc5 {[%clk 0:01:15.5]} 27. Rac1 {[%clk 0:00:45.3]} 27... Bxe7
{[%clk 0:01:15.6]} 28. Rxc2 {[%clk 0:00:45.4]} 28... Bd6 {[%clk 0:01:16.3]} 29.
Re4 {[%clk 0:00:42]} 29... Kg7 {[%clk 0:01:16.4]} 30. Rg4+ {[%clk 0:00:40.8]}
30... Kf6 {[%clk 0:01:16.9]} 31. h4 {[%clk 0:00:40.8]} 31... Rh8 {[%clk
0:01:16.7]} 32. Kg2 {[%clk 0:00:40.8]} 32... Rh5 {[%clk 0:01:16.9]} 33. a3
{[%clk 0:00:35.3]} 33... a5 {[%clk 0:01:16.5]} 34. Kh3 {[%clk 0:00:34.5]} 34...
b4 {[%clk 0:01:16.4]} 35. a4 {[%clk 0:00:34.7]} 35... Rf5 {[%clk 0:01:16.2]} 36.
Kg2 {[%clk 0:00:34.1]} 36... Rh5 {[%clk 0:01:14.6]} 37. b3 {[%clk 0:00:34.1]}
37... Rd5 {[%clk 0:01:12.2]} 38. Rcc4 {[%clk 0:00:31.9]} 38... Rd3 {[%clk
0:01:11.8]} 39. h5 {[%clk 0:00:32.2]} 39... Rd5 {[%clk 0:01:01.7]} 40. h6 {[%clk
0:00:31.8]} 40... Rh5 {[%clk 0:01:01]} 41. Rh4 {[%clk 0:00:32.2]} 41... Kg6
{[%clk 0:00:49.2]} 42. Rxh5 {[%clk 0:00:26.6]} 42... Kxh5 {[%clk 0:00:50.1]} 43.
f4 {[%clk 0:00:27.3]} 43... Kxh6 {[%clk 0:00:49.9]} 44. Kf3 {[%clk 0:00:28.2]}
44... Kg6 {[%clk 0:00:50.4]} 45. Ke4 {[%clk 0:00:28.4]} 45... Kf6 {[%clk
0:00:50.9]} 46. Kd5 {[%clk 0:00:28.6]} 46... Kf5 {[%clk 0:00:51.4]} 47. Kc6
{[%clk 0:00:27.2]} 47... Bxf4 {[%clk 0:00:50.2]} 48. Kb5 {[%clk 0:00:27.5]}
48... Bd2 {[%clk 0:00:48.4]} 49. Kxa5 {[%clk 0:00:27.5]} 49... Ke5 {[%clk
0:00:45.8]} 50. Kb5 {[%clk 0:00:27.8]} 50... Be1 {[%clk 0:00:44.6]} 51. f4+
{[%clk 0:00:27]} 51... Kf5 {[%clk 0:00:45]} 52. a5 {[%clk 0:00:27]} 52... Bf2
{[%clk 0:00:45]} 53. Rxc7 {[%clk 0:00:26.2]} 53... f6 {[%clk 0:00:44.3]} 54. Rc4
{[%clk 0:00:26]} 54... Ba7 {[%clk 0:00:43]} 55. Kxb4 {[%clk 0:00:26.2]} 55...
Kg4 {[%clk 0:00:42.2]} 56. Kb5 {[%clk 0:00:26.5]} 56... f5 {[%clk 0:00:42.6]}
57. Kc6 {[%clk 0:00:26.3]} 57... Be3 {[%clk 0:00:42.8]} 58. b4 {[%clk
0:00:26.5]} 58... Kf3 {[%clk 0:00:41.3]} 59. a6 {[%clk 0:00:26.5]} 59... Ke2
{[%clk 0:00:41.3]} 60. b5 {[%clk 0:00:26.8]} 60... Kd3 {[%clk 0:00:42.2]} 61.
Ra4 {[%clk 0:00:26.3]} 1-0

[Event "*** Titled Tuesday Blitz"]
[Site "Chess.com"]
[Date "2021.03.30"]
[Round "5"]
[White "bilelou"]
[Black "GM_Crest"]
[Result "1/2-1/2"]
[WhiteElo "2571"]
[BlackElo "2734"]
[TimeControl "180+1"]
[EndTime "10:56:08 PDT"]
[Termination "Game drawn by repetition"]

1. d4 {[%clk 0:03:00.9]} 1... d5 {[%clk 0:02:58]} 2. Nf3 {[%clk 0:02:56.4]} 2...
e6 {[%clk 0:02:57.1]} 3. c4 {[%clk 0:02:55.7]} 3... c5 {[%clk 0:02:55.5]} 4.
cxd5 {[%clk 0:02:55.4]} 4... exd5 {[%clk 0:02:55]} 5. Nc3 {[%clk 0:02:56]} 5...
Nc6 {[%clk 0:02:55.1]} 6. g3 {[%clk 0:02:53]} 6... Nf6 {[%clk 0:02:52.1]} 7. Bg2
{[%clk 0:02:53.1]} 7... Be7 {[%clk 0:02:52.3]} 8. O-O {[%clk 0:02:52.8]} 8...
O-O {[%clk 0:02:52.4]} 9. b3 {[%clk 0:02:52.7]} 9... Ne4 {[%clk 0:02:48.3]} 10.
Bb2 {[%clk 0:02:52.4]} 10... Bf6 {[%clk 0:02:48.5]} 11. Na4 {[%clk 0:02:44.6]}
11... Re8 {[%clk 0:01:43.8]} 12. Rc1 {[%clk 0:02:30.6]} 12... cxd4 {[%clk
0:01:27.1]} 13. Nxd4 {[%clk 0:02:31.5]} 13... Bd7 {[%clk 0:01:26.9]} 14. Nc5
{[%clk 0:02:30.3]} 14... Nxc5 {[%clk 0:01:25.4]} 15. Rxc5 {[%clk 0:02:26.6]}
15... Qb6 {[%clk 0:01:13]} 16. Rb5 {[%clk 0:02:20]} 16... Qa6 {[%clk 0:01:11.7]}
17. Rxd5 {[%clk 0:02:19.9]} 17... Bxd4 {[%clk 0:00:34.9]} 18. Rxd4 {[%clk
0:02:05.3]} 18... Be6 {[%clk 0:00:32.2]} 19. Ra4 {[%clk 0:02:01.1]} 19... Qb5
{[%clk 0:00:31.4]} 20. e3 {[%clk 0:01:56.1]} 20... Rad8 {[%clk 0:00:29.8]} 21.
Qa1 {[%clk 0:01:56.1]} 21... f6 {[%clk 0:00:29.3]} 22. Rc1 {[%clk 0:01:55.9]}
22... a6 {[%clk 0:00:28.7]} 23. Bf1 {[%clk 0:01:55.6]} 23... Qf5 {[%clk
0:00:27]} 24. Rf4 {[%clk 0:01:55.5]} 24... Qh5 {[%clk 0:00:26.5]} 25. h3 {[%clk
0:01:54.1]} 25... Rd2 {[%clk 0:00:24.3]} 26. Bc3 {[%clk 0:01:52.6]} 26... Rd6
{[%clk 0:00:23.2]} 27. Qb2 {[%clk 0:01:52.2]} 27... Red8 {[%clk 0:00:22.9]} 28.
g4 {[%clk 0:01:51.9]} 28... Qg5 {[%clk 0:00:22.2]} 29. Be2 {[%clk 0:01:37.1]}
29... h5 {[%clk 0:00:21.4]} 30. Kg2 {[%clk 0:01:35.7]} 30... hxg4 {[%clk
0:00:21.4]} 31. hxg4 {[%clk 0:01:36.6]} 31... Bd5+ {[%clk 0:00:20.2]} 32. Kg3
{[%clk 0:01:36.2]} 32... Be6 {[%clk 0:00:19.2]} 33. Rh1 {[%clk 0:01:31.1]} 33...
Qg6 {[%clk 0:00:17.8]} 34. Bxf6 {[%clk 0:01:27.3]} 34... gxf6 {[%clk 0:00:17.4]}
35. Rxf6 {[%clk 0:01:15]} 35... Qg7 {[%clk 0:00:17.7]} 36. Rg6 {[%clk
0:01:14.4]} 36... Qxg6 {[%clk 0:00:16.6]} 37. Qh8+ {[%clk 0:01:15]} 37... Kf7
{[%clk 0:00:16.9]} 38. Rh7+ {[%clk 0:01:15.6]} 38... Qxh7 {[%clk 0:00:17.2]} 39.
Qxh7+ {[%clk 0:01:16.5]} 39... Kf8 {[%clk 0:00:17]} 40. Qxb7 {[%clk 0:01:14.8]}
40... Ne7 {[%clk 0:00:16.4]} 41. Qb4 {[%clk 0:01:09]} 41... Nd5 {[%clk
0:00:15.7]} 42. Qd4 {[%clk 0:01:07.4]} 42... Ne7 {[%clk 0:00:15.3]} 43. Qh8+
{[%clk 0:01:05.4]} 43... Bg8 {[%clk 0:00:15.3]} 44. Bc4 {[%clk 0:01:04.2]} 44...
Rg6 {[%clk 0:00:15.4]} 45. Bxg8 {[%clk 0:01:03.3]} 45... Nxg8 {[%clk 0:00:14.5]}
46. f4 {[%clk 0:00:59.5]} 46... Re8 {[%clk 0:00:14.3]} 47. Kf2 {[%clk
0:00:55.9]} 47... Rge6 {[%clk 0:00:14.1]} 48. g5 {[%clk 0:00:51.2]} 48... Rxe3
{[%clk 0:00:13.9]} 49. g6 {[%clk 0:00:51.2]} 49... Re2+ {[%clk 0:00:10.9]} 50.
Kf3 {[%clk 0:00:51.2]} 50... Re1 {[%clk 0:00:10.3]} 51. Qh7 {[%clk 0:00:36.7]}
51... R8e7 {[%clk 0:00:10]} 52. Qh5 {[%clk 0:00:20.6]} 52... Kg7 {[%clk
0:00:09.3]} 53. Qh7+ {[%clk 0:00:19.5]} 53... Kf8 {[%clk 0:00:09.3]} 54. Qh5
{[%clk 0:00:18.8]} 54... Kg7 {[%clk 0:00:09.7]} 55. Qh7+ {[%clk 0:00:18.8]}
55... Kf8 {[%clk 0:00:10]} 1/2-1/2

[Event "*** Titled Tuesday Blitz"]
[Site "Chess.com"]
[Date "2021.03.30"]
[Round "5"]
[White "Pantata007"]
[Black "VladaSviridova"]
[Result "0-1"]
[WhiteElo "2375"]
[BlackElo "2250"]
[TimeControl "180+1"]
[EndTime "10:56:09 PDT"]
[Termination "VladaSviridova won on time"]

1. d4 {[%clk 0:03:00.9]} 1... d5 {[%clk 0:02:48]} 2. c4 {[%clk 0:02:59.9]} 2...
c6 {[%clk 0:02:47]} 3. Nc3 {[%clk 0:02:59.2]} 3... Nf6 {[%clk 0:02:47.2]} 4. e3
{[%clk 0:02:58.8]} 4... e6 {[%clk 0:02:46.9]} 5. Nf3 {[%clk 0:02:58.7]} 5...
Nbd7 {[%clk 0:02:47.2]} 6. Bd3 {[%clk 0:02:58.7]} 6... dxc4 {[%clk 0:02:47.2]}
7. Bxc4 {[%clk 0:02:59.6]} 7... b5 {[%clk 0:02:47.6]} 8. Bd3 {[%clk 0:02:59.7]}
8... Bd6 {[%clk 0:02:48.2]} 9. O-O {[%clk 0:02:56]} 9... O-O {[%clk 0:02:48.3]}
10. Bd2 {[%clk 0:02:54.1]} 10... Bb7 {[%clk 0:02:46.9]} 11. Rc1 {[%clk
0:02:53.5]} 11... Rc8 {[%clk 0:02:46.6]} 12. a3 {[%clk 0:02:53.3]} 12... Qe7
{[%clk 0:02:45]} 13. Ng5 {[%clk 0:02:23.1]} 13... a5 {[%clk 0:02:21]} 14. Nce4
{[%clk 0:02:14.6]} 14... Nxe4 {[%clk 0:02:12.6]} 15. Nxe4 {[%clk 0:02:14.1]}
15... Bc7 {[%clk 0:01:48.5]} 16. b4 {[%clk 0:02:03.1]} 16... a4 {[%clk
0:01:45.5]} 17. f4 {[%clk 0:01:46.2]} 17... f5 {[%clk 0:01:42.3]} 18. Ng5 {[%clk
0:01:25.8]} 18... Nf6 {[%clk 0:01:20.5]} 19. Nf3 {[%clk 0:01:22.4]} 19... Rcd8
{[%clk 0:00:58.5]} 20. Qc2 {[%clk 0:01:15.9]} 20... Bd6 {[%clk 0:00:50.1]} 21.
Ne5 {[%clk 0:01:07.4]} 21... Bxe5 {[%clk 0:00:44.2]} 22. fxe5 {[%clk 0:01:06.5]}
22... Nd5 {[%clk 0:00:39.4]} 23. e4 {[%clk 0:00:54.1]} 23... Nb6 {[%clk
0:00:17.2]} 24. exf5 {[%clk 0:00:49.6]} 24... exf5 {[%clk 0:00:16]} 25. Bxf5
{[%clk 0:00:44.8]} 25... g6 {[%clk 0:00:15.5]} 26. Be4 {[%clk 0:00:22.9]} 26...
Nc4 {[%clk 0:00:13.2]} 27. Bh6 {[%clk 0:00:17]} 27... Rxf1+ {[%clk 0:00:11.8]}
28. Rxf1 {[%clk 0:00:17.9]} 28... c5 {[%clk 0:00:08.6]} 29. Bxg6 {[%clk
0:00:13.3]} 29... Ne3 {[%clk 0:00:05.7]} 30. Bxe3 {[%clk 0:00:08.6]} 30... hxg6
{[%clk 0:00:05.6]} 31. Qxg6+ {[%clk 0:00:09.5]} 31... Qg7 {[%clk 0:00:05.7]} 32.
Qxg7+ {[%clk 0:00:05.5]} 32... Kxg7 {[%clk 0:00:05.9]} 33. bxc5 {[%clk
0:00:03.9]} 33... Bd5 {[%clk 0:00:04.4]} 34. Rf6 {[%clk 0:00:02.8]} 34... Rg8
{[%clk 0:00:03.7]} 35. Rb6 {[%clk 0:00:02.6]} 35... Bc4 {[%clk 0:00:02.1]} 36.
e6 {[%clk 0:00:02.5]} 36... Kg6 {[%clk 0:00:02.4]} 37. Kf2 {[%clk 0:00:02.2]}
37... Re8 {[%clk 0:00:02.2]} 38. Bf4 {[%clk 0:00:02.1]} 38... Rxe6 {[%clk
0:00:01.6]} 39. Rxe6+ {[%clk 0:00:02]} 39... Bxe6 {[%clk 0:00:02.5]} 40. Be5
{[%clk 0:00:02.9]} 40... Kf5 {[%clk 0:00:02.6]} 41. g3 {[%clk 0:00:03.2]} 41...
Ke4 {[%clk 0:00:02.7]} 42. h4 {[%clk 0:00:03.7]} 42... b4 {[%clk 0:00:02.5]} 43.
d5 {[%clk 0:00:01]} 43... Kxe5 {[%clk 0:00:02.4]} 44. dxe6 {[%clk 0:00:01]}
44... Kxe6 {[%clk 0:00:02.8]} 0-1

[Event "*** Titled Tuesday Blitz"]
[Site "Chess.com"]
[Date "2021.03.30"]
[Round "5"]
[White "MasterMK73"]
[Black "karinachess1"]
[Result "0-1"]
[WhiteElo "2272"]
[BlackElo "2493"]
[TimeControl "180+1"]
[EndTime "10:56:13 PDT"]
[Termination "karinachess1 won on time"]

1. e4 {[%clk 0:03:00.9]} 1... e5 {[%clk 0:02:59]} 2. Nc3 {[%clk 0:02:59.4]} 2...
Nc6 {[%clk 0:02:57.9]} 3. g3 {[%clk 0:02:58.9]} 3... Nf6 {[%clk 0:02:52.4]} 4.
Bg2 {[%clk 0:02:58.3]} 4... Bc5 {[%clk 0:02:51.2]} 5. Nge2 {[%clk 0:02:57.7]}
5... O-O {[%clk 0:02:49]} 6. O-O {[%clk 0:02:55.7]} 6... a6 {[%clk 0:02:48.1]}
7. d3 {[%clk 0:02:54.7]} 7... h6 {[%clk 0:02:44.1]} 8. h3 {[%clk 0:02:54.5]}
8... d6 {[%clk 0:02:43.5]} 9. Kh2 {[%clk 0:02:48.8]} 9... Nd4 {[%clk 0:02:20.8]}
10. f4 {[%clk 0:02:41.7]} 10... Nxe2 {[%clk 0:02:17.7]} 11. Qxe2 {[%clk
0:02:33.2]} 11... exf4 {[%clk 0:02:16.4]} 12. gxf4 {[%clk 0:02:17.1]} 12... Re8
{[%clk 0:02:09.3]} 13. Qf3 {[%clk 0:02:13.5]} 13... c6 {[%clk 0:01:43.3]} 14.
Rd1 {[%clk 0:01:57.6]} 14... Bd4 {[%clk 0:01:07.1]} 15. Ne2 {[%clk 0:01:51.3]}
15... Ba7 {[%clk 0:01:07.2]} 16. Ng3 {[%clk 0:01:48.1]} 16... Bd7 {[%clk
0:00:36.1]} 17. d4 {[%clk 0:01:43.4]} 17... Qe7 {[%clk 0:00:18.6]} 18. c3 {[%clk
0:01:36]} 18... d5 {[%clk 0:00:17.1]} 19. e5 {[%clk 0:01:35.2]} 19... Ne4 {[%clk
0:00:16.1]} 20. Nxe4 {[%clk 0:01:28.2]} 20... dxe4 {[%clk 0:00:17]} 21. Qxe4
{[%clk 0:01:27.9]} 21... f5 {[%clk 0:00:17.9]} 22. Qe1 {[%clk 0:01:16.3]} 22...
Be6 {[%clk 0:00:17.9]} 23. Be3 {[%clk 0:00:58]} 23... Rad8 {[%clk 0:00:18.4]}
24. Qe2 {[%clk 0:00:52.1]} 24... Qf7 {[%clk 0:00:17.4]} 25. b3 {[%clk
0:00:50.2]} 25... Rd7 {[%clk 0:00:16.1]} 26. c4 {[%clk 0:00:43.1]} 26... b5
{[%clk 0:00:14.1]} 27. d5 {[%clk 0:00:38.2]} 27... cxd5 {[%clk 0:00:13.5]} 28.
cxd5 {[%clk 0:00:33.6]} 28... Bxd5 {[%clk 0:00:12.4]} 29. Bxd5 {[%clk
0:00:30.3]} 29... Rxd5 {[%clk 0:00:12.3]} 30. Rxd5 {[%clk 0:00:28.3]} 30... Bxe3
{[%clk 0:00:12.5]} 31. Qxe3 {[%clk 0:00:14.1]} 31... Qxd5 {[%clk 0:00:12.1]} 32.
Rg1 {[%clk 0:00:14.6]} 32... Re7 {[%clk 0:00:11.6]} 33. Rg2 {[%clk 0:00:12.6]}
33... b4 {[%clk 0:00:10.6]} 34. Rd2 {[%clk 0:00:12.5]} 34... Qc6 {[%clk
0:00:09.5]} 35. Qd3 {[%clk 0:00:11.4]} 35... Rf7 {[%clk 0:00:07.5]} 36. Qd5
{[%clk 0:00:09.6]} 36... Qc3 {[%clk 0:00:06.7]} 37. Qd3 {[%clk 0:00:08.3]} 37...
Qc5 {[%clk 0:00:06.3]} 38. e6 {[%clk 0:00:06.5]} 38... Re7 {[%clk 0:00:05.9]}
39. Qd8+ {[%clk 0:00:05.8]} 39... Kh7 {[%clk 0:00:06.2]} 40. Qd5 {[%clk
0:00:04.4]} 40... Qxd5 {[%clk 0:00:06.1]} 41. Rxd5 {[%clk 0:00:03.7]} 41... Rxe6
{[%clk 0:00:07]} 42. Rxf5 {[%clk 0:00:01.1]} 42... Re2+ {[%clk 0:00:07.2]} 43.
Kg3 {[%clk 0:00:01.4]} 43... Rxa2 {[%clk 0:00:08.1]} 44. Rd5 {[%clk 0:00:01.1]}
44... Ra3 {[%clk 0:00:08.5]} 0-1

[Event "*** Titled Tuesday Blitz"]
[Site "Chess.com"]
[Date "2021.03.30"]
[Round "5"]
[White "SantoBlue"]
[Black "Zhigalko_Sergei"]
[Result "0-1"]
[WhiteElo "2815"]
[BlackElo "2901"]
[TimeControl "180+1"]
[EndTime "10:56:15 PDT"]
[Termination "Zhigalko_Sergei won by resignation"]

1. e4 {[%clk 0:03:00.4]} 1... c5 {[%clk 0:03:00.2]} 2. Nf3 {[%clk 0:03:00.5]}
2... Nc6 {[%clk 0:03:00.1]} 3. c3 {[%clk 0:02:59]} 3... Nf6 {[%clk 0:03:00.3]}
4. e5 {[%clk 0:02:59.3]} 4... Nd5 {[%clk 0:03:00.6]} 5. Bc4 {[%clk 0:02:59.5]}
5... Nb6 {[%clk 0:03:00.2]} 6. Bb3 {[%clk 0:02:59.7]} 6... g6 {[%clk 0:02:59.5]}
7. O-O {[%clk 0:02:55.5]} 7... Bg7 {[%clk 0:02:58.5]} 8. a4 {[%clk 0:02:50.1]}
8... c4 {[%clk 0:02:51.4]} 9. Bc2 {[%clk 0:02:48.9]} 9... d5 {[%clk 0:02:37.2]}
10. exd6 {[%clk 0:02:38.2]} 10... Qxd6 {[%clk 0:02:37.3]} 11. a5 {[%clk
0:02:37.6]} 11... Nd5 {[%clk 0:02:35.5]} 12. a6 {[%clk 0:02:19.9]} 12... b5
{[%clk 0:02:19.3]} 13. Na3 {[%clk 0:02:16.6]} 13... Rb8 {[%clk 0:02:18.5]} 14.
d3 {[%clk 0:02:13.4]} 14... cxd3 {[%clk 0:02:06.8]} 15. Bxd3 {[%clk 0:02:12.2]}
15... Bxa6 {[%clk 0:01:58.4]} 16. Qe2 {[%clk 0:01:58]} 16... Qc5 {[%clk
0:01:44.6]} 17. Nc2 {[%clk 0:01:05.4]} 17... Bc8 {[%clk 0:01:39.4]} 18. Ncd4
{[%clk 0:00:53.2]} 18... Nxd4 {[%clk 0:01:25.7]} 19. cxd4 {[%clk 0:00:49]} 19...
Qb6 {[%clk 0:01:22.6]} 20. Be4 {[%clk 0:00:46.3]} 20... Bb7 {[%clk 0:01:13.7]}
21. Ne5 {[%clk 0:00:46.3]} 21... Rd8 {[%clk 0:00:52.3]} 22. Bd2 {[%clk
0:00:43.3]} 22... b4 {[%clk 0:00:44.9]} 23. Be3 {[%clk 0:00:26.9]} 23... Bxe5
{[%clk 0:00:30.6]} 24. Bxd5 {[%clk 0:00:24.3]} 24... Bxh2+ {[%clk 0:00:29.1]}
25. Kxh2 {[%clk 0:00:24.5]} 25... Rxd5 {[%clk 0:00:30]} 26. Kg1 {[%clk 0:00:22]}
26... O-O {[%clk 0:00:28.3]} 27. Bh6 {[%clk 0:00:21.8]} 27... Re8 {[%clk
0:00:25.5]} 28. Rfe1 {[%clk 0:00:21.2]} 28... Qxd4 {[%clk 0:00:20.3]} 29. Rad1
{[%clk 0:00:18.5]} 29... Qc5 {[%clk 0:00:11.3]} 30. Rc1 {[%clk 0:00:12.4]} 30...
Qd6 {[%clk 0:00:10.4]} 31. f3 {[%clk 0:00:10.7]} 31... Rh5 {[%clk 0:00:06.6]}
32. Be3 {[%clk 0:00:10]} 32... a5 {[%clk 0:00:07]} 33. Red1 {[%clk 0:00:06.7]}
33... Qa6 {[%clk 0:00:07]} 34. Qxa6 {[%clk 0:00:06.5]} 34... Bxa6 {[%clk
0:00:06.6]} 35. Rc7 {[%clk 0:00:07]} 35... Re5 {[%clk 0:00:04.6]} 36. Bh6 {[%clk
0:00:05.2]} 36... f6 {[%clk 0:00:04.4]} 37. Ra7 {[%clk 0:00:04.7]} 37... Bc4
{[%clk 0:00:03.6]} 38. Bf4 {[%clk 0:00:05.3]} 38... Re2 {[%clk 0:00:03.4]} 39.
Rd4 {[%clk 0:00:04.4]} 39... Bf7 {[%clk 0:00:02.9]} 40. Rxa5 {[%clk 0:00:04.7]}
40... e5 {[%clk 0:00:03.3]} 41. Rxb4 {[%clk 0:00:03.1]} 41... exf4 {[%clk
0:00:03.4]} 42. Rxf4 {[%clk 0:00:04]} 42... f5 {[%clk 0:00:04.1]} 43. b4 {[%clk
0:00:04.2]} 43... Rb2 {[%clk 0:00:04.2]} 44. Rd4 {[%clk 0:00:04.5]} 44... Ree2
{[%clk 0:00:04.5]} 45. Ra8+ {[%clk 0:00:05.1]} 45... Kg7 {[%clk 0:00:05]} 46.
Ra7 {[%clk 0:00:05.6]} 46... Rxg2+ {[%clk 0:00:05.2]} 47. Kf1 {[%clk 0:00:06.3]}
47... Rh2 {[%clk 0:00:05.8]} 48. Kg1 {[%clk 0:00:06.3]} 48... Rhc2 {[%clk
0:00:05.8]} 49. Rd1 {[%clk 0:00:05.7]} 49... Rxb4 {[%clk 0:00:06.1]} 0-1

[Event "*** Titled Tuesday Blitz"]
[Site "Chess.com"]
[Date "2021.03.30"]
[Round "5"]
[White "Irina_Baraeva"]
[Black "AradNazari"]
[Result "0-1"]
[WhiteElo "2301"]
[BlackElo "2498"]
[TimeControl "180+1"]
[EndTime "10:56:16 PDT"]
[Termination "AradNazari won by checkmate"]

1. d4 {[%clk 0:03:00.9]} 1... f5 {[%clk 0:01:23.2]} 2. Nf3 {[%clk 0:02:59.4]}
2... Nf6 {[%clk 0:01:22.7]} 3. g3 {[%clk 0:02:59.6]} 3... g6 {[%clk 0:01:21.3]}
4. Bg2 {[%clk 0:03:00.1]} 4... Bg7 {[%clk 0:01:22.2]} 5. O-O {[%clk 0:03:00.4]}
5... O-O {[%clk 0:01:23.1]} 6. b3 {[%clk 0:03:00.5]} 6... d6 {[%clk 0:01:24]} 7.
Bb2 {[%clk 0:03:00.6]} 7... c6 {[%clk 0:01:24.3]} 8. c4 {[%clk 0:02:55.7]} 8...
Ne4 {[%clk 0:01:24.1]} 9. Nfd2 {[%clk 0:02:50.8]} 9... Nxd2 {[%clk 0:01:23.3]}
10. Nxd2 {[%clk 0:02:49.9]} 10... e5 {[%clk 0:01:24.2]} 11. dxe5 {[%clk
0:02:27.2]} 11... dxe5 {[%clk 0:01:25.1]} 12. e4 {[%clk 0:02:27.4]} 12... f4
{[%clk 0:01:24.9]} 13. Nf3 {[%clk 0:02:25.1]} 13... Qe7 {[%clk 0:01:24.6]} 14.
Qc2 {[%clk 0:01:59.5]} 14... Bg4 {[%clk 0:01:24]} 15. a4 {[%clk 0:01:52.2]}
15... Nd7 {[%clk 0:01:17.6]} 16. b4 {[%clk 0:01:42.3]} 16... Rf7 {[%clk
0:01:09.7]} 17. c5 {[%clk 0:01:41.2]} 17... Raf8 {[%clk 0:01:08.2]} 18. Qb3
{[%clk 0:01:34.4]} 18... Kh8 {[%clk 0:01:07.1]} 19. Nd2 {[%clk 0:01:27.5]} 19...
f3 {[%clk 0:01:06.3]} 20. Bh1 {[%clk 0:01:25.7]} 20... h5 {[%clk 0:00:54]} 21.
Rfd1 {[%clk 0:00:55.6]} 21... h4 {[%clk 0:00:53.4]} 22. Nc4 {[%clk 0:00:54.5]}
22... Be6 {[%clk 0:00:48.2]} 23. Qc3 {[%clk 0:00:50.9]} 23... hxg3 {[%clk
0:00:47.6]} 24. hxg3 {[%clk 0:00:50.4]} 24... Qg5 {[%clk 0:00:33]} 25. Nd6
{[%clk 0:00:37.8]} 25... Rf4 {[%clk 0:00:20.3]} 26. Rd3 {[%clk 0:00:37.4]} 26...
Qh5 {[%clk 0:00:15]} 27. gxf4 {[%clk 0:00:33.2]} 27... Qg4+ {[%clk 0:00:14.4]}
28. Kf1 {[%clk 0:00:32.9]} 28... Qh3+ {[%clk 0:00:15]} 29. Ke1 {[%clk
0:00:31.5]} 29... Qxh1+ {[%clk 0:00:14.9]} 30. Kd2 {[%clk 0:00:31.7]} 30... Qh2
{[%clk 0:00:15.8]} 31. Rf1 {[%clk 0:00:30.2]} 31... Qxf4+ {[%clk 0:00:14.8]} 32.
Kc2 {[%clk 0:00:27.4]} 32... b6 {[%clk 0:00:15.7]} 33. Rh1+ {[%clk 0:00:24.8]}
33... Kg8 {[%clk 0:00:15.9]} 34. Re1 {[%clk 0:00:24.5]} 34... bxc5 {[%clk
0:00:15.8]} 35. bxc5 {[%clk 0:00:24.8]} 35... Rb8 {[%clk 0:00:16.5]} 36. Rxf3
{[%clk 0:00:22.8]} 36... Qh4 {[%clk 0:00:13.5]} 37. Rg3 {[%clk 0:00:21.6]} 37...
Rb3 {[%clk 0:00:13.1]} 38. Qa5 {[%clk 0:00:18.3]} 38... Rxg3 {[%clk 0:00:10.8]}
39. fxg3 {[%clk 0:00:18.4]} 39... Qxg3 {[%clk 0:00:09]} 40. Qd8+ {[%clk
0:00:16.8]} 40... Bf8 {[%clk 0:00:08.4]} 41. Rd1 {[%clk 0:00:14.5]} 41... Bb3+
{[%clk 0:00:08]} 42. Kc1 {[%clk 0:00:14.4]} 42... Qe3+ {[%clk 0:00:07.5]} 43.
Kb1 {[%clk 0:00:12.2]} 43... Bxd1 {[%clk 0:00:07.5]} 44. Qe8 {[%clk 0:00:09.9]}
44... Qd3+ {[%clk 0:00:05.9]} 45. Ka1 {[%clk 0:00:08.7]} 45... Bb3 {[%clk
0:00:06.5]} 46. Qxg6+ {[%clk 0:00:08.1]} 46... Bg7 {[%clk 0:00:07]} 47. Qe8+
{[%clk 0:00:05.7]} 47... Nf8 {[%clk 0:00:07.6]} 48. Bc1 {[%clk 0:00:05.1]} 48...
Qc2 {[%clk 0:00:07.1]} 49. Bb2 {[%clk 0:00:04]} 49... Qd1+ {[%clk 0:00:07]} 50.
Bc1 {[%clk 0:00:04.5]} 50... Qxc1# {[%clk 0:00:07.9]} 0-1